fUST/lending_fUST_20240726
["ID","MTS","AMOUNT","RATE_DAILY","PERIOD"]
[333270309,1722009044455,-151.0,0.00013698,2]
[333270310,1722009044465,-197.798972,0.00013698,2]
[333270311,1722009044474,-272.992742,0.00013698,2]
[333270312,1722009044484,-272.992742,0.00013698,2]
[333270313,1722009044494,-416.11006723,0.00013698,2]
[333270314,1722009044504,-272.992742,0.00013698,2]
[333270315,1722009044513,-500.0,0.00013698,2]
[333270316,1722009044523,-500.0,0.00013698,2]
[333270317,1722009044534,-820.9,0.00013698,2]
[333270318,1722009044545,-500.0,0.00013698,2]
[333270319,1722009044556,-763.15,0.00013698,2]
[333270320,1722009044567,-815.3,0.00013698,2]
[333270321,1722009044576,-500.0,0.00013698,2]
[333270322,1722009044586,-500.0,0.00013698,2]
[333270323,1722009044595,-500.0,0.00013698,2]
[333270324,1722009044605,-294.56022965,0.00013698,2]
[333270325,1722009044615,-622.23,0.00013698,2]
[333270326,1722009044630,-500.0,0.00013698,2]
[333270327,1722009044642,-500.0,0.00013698,2]
[333270328,1722009044652,-500.0,0.00013698,2]
[333270329,1722009044665,-500.0,0.00013698,2]
[333270330,1722009044675,-506.44,0.00013698,2]
[333270331,1722009044684,-500.0,0.00013698,2]
[333270332,1722009044693,-500.0,0.00013698,2]
[333270333,1722009044702,-509.40211668,0.00013698,2]
[333270334,1722009044711,-500.0,0.00013698,2]
[333270335,1722009044720,-500.0,0.00013698,2]
[333270336,1722009044729,-500.0,0.00013698,2]
[333270337,1722009044739,-501.30856067,0.00013698,2]
[333270338,1722009044748,-1187.44,0.00013698,2]
[333270339,1722009044758,-500.0,0.00013698,2]
[333270340,1722009044768,-500.0,0.00013698,2]
[333270341,1722009044778,-500.0,0.00013698,2]
[333270342,1722009044791,-500.0,0.00013698,2]
[333270343,1722009044802,-500.0,0.00013698,2]
[333270344,1722009044812,-505.83,0.00013698,2]
[333270345,1722009044824,-500.0,0.00013698,2]
[333270346,1722009044834,-500.0,0.00013698,2]
[333270347,1722009044846,-1757.92,0.00013698,2]
[333270348,1722009044855,-500.98295585,0.00013698,2]
[333270349,1722009044865,-489.71425071,0.00013698,2]
[333270350,1722009044876,-502.28363194,0.00013698,2]
[333270351,1722009044886,-500.0,0.00013698,2]
[333270352,1722009044897,-701.11,0.00013698,2]
[333270353,1722009044908,-500.0,0.00013698,2]
[333270354,1722009044918,-500.0,0.00013698,2]
[333270355,1722009044930,-601.72,0.00013698,2]
[333270356,1722009044940,-500.0,0.00013698,2]
[333270357,1722009044952,-500.0,0.00013698,2]
[333270358,1722009044963,-1877.8,0.00013698,2]
[333270359,1722009044972,-500.0,0.00013698,2]
[333270360,1722009044984,-500.0,0.00013698,2]
[333270361,1722009044996,-500.0,0.00013698,2]
[333270362,1722009045008,-254.5393313,0.00013698,2]
[333270363,1722009045020,-500.0,0.00013698,2]
[333270364,1722009045031,-585.78539414,0.00013698,2]
[333270365,1722009045041,-500.0,0.00013698,2]
[333270366,1722009045050,-323.97300061,0.00013698,2]
[333270367,1722009045062,-394.76486303,0.00013698,2]
[333270368,1722009045072,-500.0,0.00013698,2]
[333270369,1722009045081,-1604.12,0.00013698,2]
[333270370,1722009045091,-846.03,0.00013698,2]
[333270371,1722009045100,-500.0,0.00013698,2]
[333270372,1722009045109,-500.0,0.00013698,2]
[333270373,1722009045122,-500.0,0.00013698,2]
[333270374,1722009045134,-500.0,0.00013698,2]
[333270375,1722009045149,-500.0,0.00013698,2]
[333270376,1722009045159,-500.0,0.00013698,2]
[333270377,1722009045169,-500.0,0.00013698,2]
[333270378,1722009045180,-500.0,0.00013698,2]
[333270379,1722009045190,-500.0,0.00013698,2]
[333270380,1722009045199,-500.0,0.00013698,2]
[333270381,1722009045209,-500.0,0.00013698,2]
[333270382,1722009045220,-500.0,0.00013698,2]
[333270383,1722009045230,-500.0,0.00013698,2]
[333270384,1722009045240,-500.0,0.00013698,2]
[333270385,1722009045251,-500.0,0.00013698,2]
[333270386,1722009045261,-500.0,0.00013698,2]
[333270387,1722009045271,-500.0,0.00013698,2]
[333270388,1722009045280,-500.0,0.00013698,2]
[333270389,1722009045292,-500.0,0.00013698,2]
[333270390,1722009045303,-401.95116072,0.00013698,2]
[333270391,1722009045313,-208.81288163,0.00013698,2]
[333270392,1722009045325,-500.0,0.00013698,2]
[333270393,1722009045335,-500.0,0.00013698,2]
[333270394,1722009045346,-500.0,0.00013698,2]
[333270395,1722009045356,-500.0,0.00013698,2]
[333270396,1722009045367,-276.56560569,0.00013698,2]
[333270397,1722009045377,-500.0,0.00013698,2]
[333270398,1722009045387,-150.112233,0.000137,2]
[333270399,1722009045396,-151.0,0.000137,2]
[333270400,1722009045405,-151.0,0.000137,2]
[333270401,1722009045415,-151.0,0.000137,2]
[333270402,1722009045426,-4349.21747622,0.00013726,2]
[333270403,1722009045436,-941.95045952,0.00013775,2]
[333270404,1722009045445,-200.0,0.00013872,2]
[333270405,1722009045456,-1091.32,0.000139,2]
[333270406,1722009045465,-367.53930495,0.000139,2]
[333270408,1722009045475,-8058.7913778,0.00013972,5]
[333270410,1722009045485,-151.0,0.00013972,2]
[333270412,1722009045495,-151.0,0.00013972,2]
[333270414,1722009045504,-500.0,0.00013972,2]
[333270416,1722009045514,-500.0,0.00013972,2]
[333270418,1722009045523,-500.0,0.00013972,2]
[333270420,1722009045533,-500.0,0.00013972,2]
[333270422,1722009045542,-500.0,0.00013972,2]
[333270424,1722009045553,-500.0,0.00013972,2]
[333270426,1722009045562,-500.0,0.00013972,2]
[333270428,1722009045571,-500.0,0.00013972,2]
[333270430,1722009045580,-500.0,0.00013972,2]
[333270432,1722009045590,-500.0,0.00013972,2]
[333270434,1722009045599,-500.0,0.00013972,2]
[333270436,1722009045609,-500.0,0.00013972,2]
[333270438,1722009045619,-540.08,0.00013972,2]
[333270440,1722009045630,-616.32926765,0.00013972,2]
[333270442,1722009045639,-640.11,0.00013972,2]
[333270444,1722009045649,-512.38206662,0.00013972,2]
[333270446,1722009045658,-500.0,0.00013972,2]
[333270447,1722009045667,-500.0,0.00013972,2]
[333270449,1722009045677,-500.0,0.00013972,2]
[333270451,1722009045686,-500.0,0.00013972,2]
[333270453,1722009045696,-500.0,0.00013972,2]
[333270456,1722009045706,-516.77693941,0.00013972,2]
[333270458,1722009045715,-500.0,0.00013972,2]
[333270460,1722009045724,-500.0,0.00013972,2]
[333270462,1722009045736,-500.0,0.00013972,2]
[333270464,1722009045748,-500.0,0.00013972,2]
[333270466,1722009045758,-500.0,0.00013972,2]
[333270468,1722009045768,-500.0,0.00013972,2]
[333270470,1722009045777,-500.0,0.00013972,2]
[333270471,1722009045788,-396.72760412,0.00013972,2]
[333270472,1722009045798,-500.0,0.00013972,2]
[333270475,1722009045807,-519.81703122,0.00013972,2]
[333270477,1722009045817,-500.0,0.00013972,2]
[333270479,1722009045826,-546.95,0.00013972,2]
[333270481,1722009045835,-500.0,0.00013972,2]
[333270483,1722009045845,-504.354886,0.00013972,2]
[333270485,1722009045854,-157.204566,0.00013972,2]
[333270487,1722009045863,-157.204566,0.00013972,2]
[333270489,1722009045874,-216.23443795,0.00013972,2]
[333270491,1722009045883,-157.204566,0.00013972,2]
[333270493,1722009045892,-157.204566,0.00013972,2]
[333270495,1722009045901,-500.0,0.00013972,2]
[333270497,1722009045910,-597.44125792,0.00013972,2]
[333270499,1722009045919,-500.0,0.00013972,2]
[333270501,1722009045929,-500.0,0.00013972,2]
[333270503,1722009045939,-795.09,0.00013972,2]
[333270505,1722009045948,-500.0,0.00013972,2]
[333270507,1722009045957,-507.14043006,0.00013972,2]
[333270509,1722009045967,-500.0,0.00013972,2]
[333270512,1722009045977,-500.0,0.00013972,2]
[333270514,1722009045986,-500.0,0.00013972,2]
[333270516,1722009045996,-500.0,0.00013972,2]
[333270518,1722009046006,-532.16509311,0.00013972,2]
[333270519,1722009046016,-500.0,0.00013972,2]
[333270521,1722009046025,-500.0,0.00013972,2]
[333270523,1722009046034,-500.0,0.00013972,2]
[333270525,1722009046043,-500.0,0.00013972,2]
[333270527,1722009046052,-500.0,0.00013972,2]
[333270529,1722009046062,-500.0,0.00013972,2]
[333270531,1722009046071,-500.0,0.00013972,2]
[333270533,1722009046080,-428.81608943,0.00013972,2]
[333270535,1722009046089,-500.0,0.00013972,2]
[333270538,1722009046100,-501.11110698,0.00013972,2]
[333270540,1722009046109,-713.59,0.00013972,2]
[333270542,1722009046119,-500.0,0.00013972,2]
[333270544,1722009046128,-500.0,0.00013972,2]
[333270546,1722009046139,-515.77249068,0.00013972,2]
[333270547,1722009046150,-500.0,0.00013972,2]
[333270550,1722009046159,-500.0,0.00013972,2]
[333270552,1722009046169,-689.26,0.00013972,2]
[333270554,1722009046182,-500.0,0.00013972,2]
[333270556,1722009046192,-960.188475,0.00013972,2]
[333270558,1722009046202,-960.188475,0.00013972,2]
[333270560,1722009046212,-519.42437233,0.00013972,2]
[333270562,1722009046223,-960.188475,0.00013972,2]
[333270564,1722009046233,-960.188475,0.00013972,2]
[333270565,1722009046242,-753.16,0.00013972,2]
[333270566,1722009046251,-507.96421758,0.00013972,2]
[333270567,1722009046260,-500.0,0.00013972,2]
[333270568,1722009046270,-500.0,0.00013972,2]
[333270569,1722009046279,-151.0,0.00013972,2]
[333270570,1722009046288,-151.0,0.00013972,2]
[333270571,1722009046298,-968.09,0.00013972,2]
[333270572,1722009046307,-500.0,0.00013972,2]
[333270573,1722009046317,-151.0,0.00013972,2]
[333270574,1722009046326,-151.0,0.00013972,2]
[333270575,1722009046335,-500.0,0.00013972,2]
[333270576,1722009046347,-574.78788849,0.00013972,2]
[333270577,1722009046359,-500.0,0.00013972,2]
[333270578,1722009046368,-500.0,0.00013972,2]
[333270579,1722009046381,-502.6434046,0.00013972,2]
[333270580,1722009046391,-500.0,0.00013972,2]
[333270581,1722009046404,-588.29253368,0.00013972,2]
[333270582,1722009046413,-500.0,0.00013972,2]
[333270583,1722009046422,-500.0,0.00013972,2]
[333270584,1722009046431,-500.0,0.00013972,2]
[333270585,1722009046440,-500.0,0.00013972,2]
[333270586,1722009046449,-500.0,0.00013972,2]
[333270587,1722009046458,-867.31,0.00013972,2]
[333270588,1722009046468,-500.0,0.00013972,2]
[333270589,1722009046477,-910.22,0.00013972,2]
[333270590,1722009046487,-500.0,0.00013972,2]
[333270591,1722009046496,-500.0,0.00013972,2]
[333270592,1722009046506,-500.0,0.00013972,2]
[333270593,1722009046515,-500.0,0.00013972,2]
[333270594,1722009046525,-500.0,0.00013972,2]
[333270595,1722009046534,-151.0,0.00013972,2]
[333270596,1722009046544,-151.0,0.00013972,2]
[333270597,1722009046553,-502.56395237,0.00013972,2]
[333270598,1722009046563,-500.0,0.00013972,2]
[333270599,1722009046572,-500.0,0.00013972,2]
[333270600,1722009046581,-500.0,0.00013972,2]
[333270601,1722009046591,-1107.87,0.00013972,2]
[333270602,1722009046600,-510.24467786,0.00013972,2]
[333270603,1722009046609,-151.0,0.00013972,2]
[333270605,1722009046620,-500.0,0.00013972,2]
[333270607,1722009046630,-500.0,0.00013972,2]
[333270608,1722009046639,-500.0,0.00013972,2]
[333270609,1722009046648,-875.06,0.00013972,2]
[333270610,1722009046658,-500.0,0.00013972,2]
[333270611,1722009046669,-483.78754246,0.00013972,2]
[333270612,1722009046679,-500.0,0.00013972,2]
[333270613,1722009046688,-500.0,0.00013972,2]
[333270614,1722009046697,-650.46,0.00013972,2]
[333270615,1722009046707,-500.0,0.00013972,2]
[333270616,1722009046716,-502.36529503,0.00013972,2]
[333270617,1722009046726,-151.0,0.00013972,2]
[333270618,1722009046735,-500.0,0.00013972,2]
[333270619,1722009046745,-151.0,0.00013972,2]
[333270620,1722009046754,-417.85646683,0.00013972,2]
[333270621,1722009046763,-500.0,0.00013972,2]
[333270622,1722009046773,-1607.58,0.00013972,2]
[333270623,1722009046782,-500.0,0.00013972,2]
[333270624,1722009046791,-500.0,0.00013972,2]
[333270625,1722009046802,-500.0,0.00013972,2]
[333270626,1722009046811,-594.45,0.00013972,2]
[333270627,1722009046820,-500.0,0.00013972,2]
[333270628,1722009046830,-323.22216477,0.00013972,2]
[333270629,1722009046839,-500.0,0.00013972,2]
[333270630,1722009046848,-500.0,0.00013972,2]
[333270631,1722009046858,-504.46436506,0.00013972,2]
[333270632,1722009046868,-554.76,0.00013972,2]
[333270633,1722009046879,-1001.679447,0.00013972,2]
[333270634,1722009046889,-500.0,0.00013972,2]
[333270635,1722009046898,-1039.33,0.00013972,2]
[333270636,1722009046907,-1001.679447,0.00013972,2]
[333270637,1722009046918,-500.0,0.00013972,2]
[333270638,1722009046929,-500.0,0.00013972,2]
[333270639,1722009046939,-1001.679447,0.00013972,2]
[333270640,1722009046948,-151.0,0.00013972,2]
[333270641,1722009046958,-1001.679447,0.00013972,2]
[333270642,1722009046967,-151.0,0.00013972,2]
[333270643,1722009046976,-500.0,0.00013972,2]
[333270644,1722009046986,-500.0,0.00013972,2]
[333270645,1722009046995,-500.0,0.00013972,2]
[333270646,1722009047005,-500.0,0.00013972,2]
[333270647,1722009047147,-231.10271594,0.00013972,2]
[333270648,1722009047159,-500.0,0.00013972,2]
[333270649,1722009047170,-500.0,0.00013972,2]
[333270650,1722009047182,-500.0,0.00013972,2]
[333270651,1722009047191,-220.53694482,0.00013972,2]
[333270652,1722009047200,-500.0,0.00013972,2]
[333270653,1722009047210,-500.0,0.00013972,2]
[333270654,1722009047224,-500.0,0.00013972,2]
[333270655,1722009047236,-500.0,0.00013972,2]
[333270656,1722009047248,-500.0,0.00013972,2]
[333270657,1722009047259,-151.0,0.00013972,2]
[333270658,1722009047270,-500.0,0.00013972,2]
[333270659,1722009047280,-151.0,0.00013972,2]
[333270660,1722009047290,-500.0,0.00013972,2]
[333270661,1722009047301,-500.0,0.00013972,2]
[333270662,1722009047312,-500.0,0.00013972,2]
[333270663,1722009047322,-546.51,0.00013972,2]
[333270664,1722009047333,-500.0,0.00013972,2]
[333270665,1722009047342,-506.34635955,0.00013972,2]
[333270666,1722009047354,-532.143422,0.00013972,2]
[333270667,1722009047364,-500.0,0.00013972,2]
[333270668,1722009047375,-532.143422,0.00013972,2]
[333270669,1722009047385,-500.0,0.00013972,2]
[333270670,1722009047396,-500.0,0.00013972,2]
[333270671,1722009047410,-151.0,0.00013972,2]
[333270672,1722009047419,-532.143422,0.00013972,2]
[333270673,1722009047429,-151.0,0.00013972,2]
[333270674,1722009047442,-532.143422,0.00013972,2]
[333270675,1722009047454,-500.0,0.00013972,2]
[333270676,1722009047466,-502.08201003,0.00013972,2]
[333270677,1722009047475,-780.262009,0.00013972,2]
[333270678,1722009047488,-780.262009,0.00013972,2]
[333270679,1722009047500,-726.26,0.00013972,2]
[333270680,1722009047510,-780.262009,0.00013972,2]
[333270681,1722009047520,-780.262009,0.00013972,2]
[333270682,1722009047531,-500.0,0.00013972,2]
[333270683,1722009047543,-832.82,0.00013972,2]
[333270684,1722009047554,-500.0,0.00013972,2]
[333270685,1722009047565,-500.0,0.00013972,2]
[333270686,1722009047576,-1052.44,0.00013972,2]
[333270687,1722009047585,-746.23,0.00013972,2]
[333270688,1722009047596,-1260.95,0.00013972,2]
[333270689,1722009047607,-923.74,0.00013972,2]
[333270690,1722009047619,-5723.67,0.00013972,2]
[333270691,1722009047630,-500.0,0.00013972,2]
[333270692,1722009047641,-5177.77,0.00013972,2]
[333270693,1722009047652,-500.0,0.00013972,2]
[333270694,1722009047662,-570.38,0.00013972,2]
[333270695,1722009047673,-435.17128086,0.00013972,2]
[333270696,1722009047684,-500.0,0.00013972,2]
[333270697,1722009047694,-500.0,0.00013972,2]
[333270698,1722009047705,-1950.73,0.00013972,2]
[333270699,1722009047715,-506.45385332,0.00013972,2]
[333270700,1722009047724,-500.0,0.00013972,2]
[333270701,1722009047735,-1064.35,0.00013972,2]
[333270702,1722009047746,-500.0,0.00013972,2]
[333270703,1722009047756,-500.0,0.00013972,2]
[333270704,1722009047767,-599.17,0.00013972,2]
[333270705,1722009047778,-500.0,0.00013972,2]
[333270706,1722009047789,-1314.922102,0.00013972,2]
[333270707,1722009047800,-500.0,0.00013972,2]
[333270708,1722009047810,-1314.922102,0.00013972,2]
[333270709,1722009047821,-1314.922102,0.00013972,2]
[333270710,1722009047830,-1314.922102,0.00013972,2]
[333270711,1722009047840,-429.51,0.00013972,2]
[333270712,1722009047850,-352.117822,0.00013972,2]
[333270713,1722009047859,-352.117822,0.00013972,2]
[333270714,1722009047869,-500.0,0.00013972,2]
[333270715,1722009047881,-500.0,0.00013972,2]
[333270716,1722009047891,-352.117822,0.00013972,2]
[333270717,1722009047900,-352.117822,0.00013972,2]
[333270718,1722009047910,-500.0,0.00013972,2]
[333270719,1722009047920,-500.0,0.00013972,2]
[333270720,1722009047930,-500.0,0.00013972,2]
[333270721,1722009047939,-500.0,0.00013972,2]
[333270722,1722009047948,-500.0,0.00013972,2]
[333270723,1722009047958,-500.0,0.00013972,2]
[333270724,1722009047967,-539.82,0.00013972,2]
[333270725,1722009047977,-501.29,0.00013972,2]
[333270726,1722009047987,-723.98,0.00013972,2]
[333270727,1722009047996,-505.68830696,0.00013972,2]
[333270728,1722009048006,-500.0,0.00013972,2]
[333270729,1722009048015,-502.64021438,0.00013972,2]
[333270730,1722009048025,-1641.6,0.00013972,2]
[333270731,1722009048034,-264.645287,0.00013972,2]
[333270732,1722009048044,-500.0,0.00013972,2]
[333270733,1722009048054,-264.645287,0.00013972,2]
[333270734,1722009048063,-322.8742339,0.00013972,2]
[333270735,1722009048072,-500.0,0.00013972,2]
[333270736,1722009048082,-1796.36,0.00013972,2]
[333270737,1722009048091,-264.645287,0.00013972,2]
[333270738,1722009048100,-518.31413586,0.00013972,2]
[333270739,1722009048110,-264.645287,0.00013972,2]
[333270740,1722009048119,-642.72,0.00013972,2]
[333270741,1722009048131,-528.12,0.00013972,2]
[333270742,1722009048146,-1025.09,0.00013972,2]
[333270743,1722009048155,-500.0,0.00013972,2]
[333270744,1722009048164,-192.878919,0.00013972,2]
[333270745,1722009048174,-500.0,0.00013972,2]
[333270746,1722009048186,-556.36,0.00013972,2]
[333270747,1722009048196,-500.0,0.00013972,2]
[333270748,1722009048207,-3675.02,0.00013972,2]
[333270749,1722009048218,-1444.01,0.00013972,2]
[333270750,1722009048228,-500.0,0.00013972,2]
[333270751,1722009048238,-500.0,0.00013972,2]
[333270752,1722009048248,-787.65,0.00013972,2]
[333270753,1722009048258,-500.0,0.00013972,2]
[333270754,1722009048268,-877.75,0.00013972,2]
[333270755,1722009048278,-1400.87,0.00013972,2]
[333270756,1722009048287,-500.0,0.00013972,2]
[333270757,1722009048297,-894.44,0.00013972,2]
[333270758,1722009048307,-151.0,0.00013972,2]
[333270759,1722009048317,-500.0,0.00013972,2]
[333270760,1722009048326,-558.32,0.00013972,2]
[333270761,1722009048335,-184.80927451,0.00013972,2]
[333270762,1722009048345,-3040.98,0.00013972,2]
[333270763,1722009048354,-500.0,0.00013972,2]
[333270764,1722009048365,-500.0,0.00013972,2]
[333270765,1722009048378,-500.0,0.00013972,2]
[333270766,1722009048387,-500.0,0.00013972,2]
[333270767,1722009048397,-593.762557,0.00013972,2]
[333270768,1722009048407,-593.762557,0.00013972,2]
[333270769,1722009048421,-151.0,0.00013972,2]
[333270770,1722009048431,-272.992742,0.00013972,2]
[333270771,1722009048441,-151.0,0.00013972,2]
[333270772,1722009048451,-272.992742,0.00013972,2]
[333270773,1722009048460,-500.0,0.00013972,2]
[333270774,1722009048470,-510.89486563,0.00013972,2]
[333270775,1722009048480,-500.0,0.00013972,2]
[333270776,1722009048490,-593.762557,0.00013972,2]
[333270777,1722009048500,-698.58,0.00013972,2]
[333270778,1722009048510,-593.762557,0.00013972,2]
[333270779,1722009048520,-272.992742,0.00013972,2]
[333270780,1722009048530,-272.992742,0.00013972,2]
[333270781,1722009048540,-500.0,0.00013972,2]
[333270782,1722009048550,-500.0,0.00013972,2]
[333270783,1722009048561,-820.9,0.00013972,2]
[333270784,1722009048570,-500.0,0.00013972,2]
[333270785,1722009048579,-504.14963923,0.00013972,2]
[333270786,1722009048589,-815.3,0.00013972,2]
[333270787,1722009048598,-763.15,0.00013972,2]
[333270788,1722009048608,-500.0,0.00013972,2]
[333270789,1722009048617,-622.23,0.00013972,2]
[333270790,1722009048630,-500.0,0.00013972,2]
[333270791,1722009048639,-500.0,0.00013972,2]
[333270792,1722009048650,-500.0,0.00013972,2]
[333270793,1722009048660,-506.44,0.00013972,2]
[333270794,1722009048670,-500.0,0.00013972,2]
[333270795,1722009048680,-500.0,0.00013972,2]
[333270796,1722009048690,-500.0,0.00013972,2]
[333270797,1722009048701,-649.02039044,0.00013972,2]
[333270798,1722009048711,-1187.44,0.00013972,2]
[333270799,1722009048721,-500.0,0.00013972,2]
[333270800,1722009048730,-500.0,0.00013972,2]
[333270801,1722009048740,-500.0,0.00013972,2]
[333270802,1722009048750,-505.83,0.00013972,2]
[333270803,1722009048759,-500.0,0.00013972,2]
[333270804,1722009048770,-500.0,0.00013972,2]
[333270805,1722009048780,-1757.92,0.00013972,2]
[333270806,1722009048793,-701.11,0.00013972,2]
[333270807,1722009048803,-500.0,0.00013972,2]
[333270808,1722009048814,-601.72,0.00013972,2]
[333270809,1722009048824,-1877.8,0.00013972,2]
[333270810,1722009048834,-500.0,0.00013972,2]
[333270811,1722009048846,-1604.12,0.00013972,2]
[333270812,1722009048856,-846.03,0.00013972,2]
[333270813,1722009048867,-150.0,0.00013974,2]
[333270814,1722009048880,-505.0,0.00013974,2]
[333270815,1722009048890,-1409.0,0.00013974,2]
[333270816,1722009048899,-20000.0,0.00014,2]
[333270817,1722009048909,-4000.0,0.00014,14]
[333270818,1722009048920,-151.0,0.00014,2]
[333270819,1722009048930,-151.0,0.00014,2]
[333270820,1722009048939,-151.0,0.00014,2]
[333270821,1722009048949,-151.0,0.00014,2]
[333270822,1722009048960,-177.9504,0.00014,2]
[333270823,1722009048971,-352.117822,0.00014,2]
[333270824,1722009048981,-352.117822,0.00014,2]
[333270825,1722009048991,-264.645287,0.00014,2]
[333270826,1722009049001,-264.645287,0.00014,2]
[333270827,1722009049011,-593.762557,0.00014,2]
[333270828,1722009049021,-151.0,0.00014,2]
[333270829,1722009049032,-593.762557,0.00014,2]
[333270830,1722009049042,-156.0,0.0001403,2]
[333270831,1722009049054,-153.0,0.0001404,2]
[333270832,1722009049066,-153.0,0.0001404,2]
[333270833,1722009049075,-153.0,0.0001404,2]
[333270834,1722009049086,-153.0,0.0001404,2]
[333270835,1722009049097,-153.0,0.0001404,2]
[333270836,1722009049107,-153.0,0.0001404,2]
[333270837,1722009049116,-153.0,0.0001404,2]
[333270838,1722009049127,-153.0,0.0001404,2]
[333270839,1722009049139,-153.0,0.0001404,2]
[333270840,1722009049151,-153.0,0.0001404,2]
[333270841,1722009049161,-153.0,0.0001404,2]
[333270842,1722009049170,-153.0,0.0001404,2]
[333270843,1722009049179,-153.0,0.0001404,2]
[333270844,1722009049190,-153.0,0.0001404,2]
[333270845,1722009049200,-153.0,0.0001404,2]
[333270846,1722009049210,-153.0,0.0001404,2]
[333270847,1722009049222,-153.0,0.0001404,2]
[333270848,1722009049233,-153.0,0.0001404,2]
[333270849,1722009049244,-153.0,0.0001404,2]
[333270850,1722009049253,-153.0,0.0001404,2]
[333270851,1722009049263,-153.0,0.0001404,2]
[333270852,1722009049272,-153.0,0.0001404,2]
[333270853,1722009049282,-153.0,0.0001404,2]
[333270854,1722009049293,-153.0,0.0001404,2]
[333270855,1722009049303,-153.0,0.0001404,2]
[333270856,1722009049313,-153.0,0.0001404,2]
[333270857,1722009049324,-153.0,0.0001404,2]
[333270858,1722009049335,-153.0,0.0001404,2]
[333270859,1722009049345,-153.0,0.0001404,2]
[333270860,1722009049356,-153.0,0.0001404,2]
[333270861,1722009049366,-153.0,0.0001404,2]
[333270862,1722009049378,-153.0,0.0001404,2]
[333270863,1722009049387,-153.0,0.0001404,2]
[333270864,1722009049398,-153.0,0.0001404,2]
[333270865,1722009049409,-153.0,0.0001404,2]
[333270866,1722009049420,-600.0,0.00014075,2]
[333270867,1722009049432,-157.204566,0.000141,2]
[333270868,1722009049443,-157.204566,0.000141,2]
[333270869,1722009049453,-960.188475,0.000141,2]
[333270870,1722009049463,-960.188475,0.000141,2]
[333270871,1722009049473,-2850.0,0.000141,30]
[333270872,1722009049484,-151.0,0.000141,2]
[333270873,1722009049495,-1001.679447,0.00014201,2]
[333270874,1722009049506,-1001.679447,0.00014201,2]
[333270875,1722009049518,-151.0,0.00014201,2]
[333270876,1722009049528,-151.0,0.00014201,2]
[333270877,1722009049537,-532.143422,0.00014201,2]
[333270878,1722009049547,-532.143422,0.00014201,2]
[333270879,1722009049557,-192.973907,0.00014201,2]
[333270880,1722009049568,-283.466988,0.00014201,2]
[333270881,1722009049579,-176.701921,0.00014201,2]
[333270882,1722009049590,-181.092358,0.00014201,2]
[333270883,1722009049601,-167.47796,0.00014201,2]
[333270884,1722009049611,-185.907398,0.00014201,2]
[333270885,1722009049622,-283.466985,0.00014201,2]
[333270886,1722009049632,-171.774382,0.00014201,2]
[333270887,1722009049641,-174.080281,0.00014201,2]
[333270888,1722009049652,-174.565431,0.00014201,2]
[333270889,1722009049663,-179.872799,0.00014201,2]